Cogmind - Beta 11.2 @@@ ROGUE MODE // 2023.01.27 @ 20:15:16 Player: Red Box Result: Destroyed by 9Z-A7Q(z) with Zionite Laser-S Performance ------------- Evolutions (3) 1500 Regions Visited (10) 2000 Robots Destroyed (119) 595 Value Destroyed (3348) 3348 Prototype IDs (17) 340 Alien Tech Used (0) 0 Bonus (1061) 1061 TOTAL SCORE: 8844 Bonus ------- Follower Combat Kills 72 Met Imprinter 300 Destroyed Z-Imprinter 1000 Friendly Fire -311 Cogmind --------- Core Integrity 0/700 Matter 204/300 Energy 642/915 System Corruption 0% Temperature Cool (27) Movement Walking (200) Ox1 Location -7/Deep Caves Parts ------- > --- POWER (1) -------- Neutrino Core > --- PROPULSION (3) --- Improved Titanium Leg Zionite Composite Leg I Advanced Myomer Leg > --- UTILITY (6) ------ Experimental Heat Sink Huge Storage Unit Zionite Biocell Improved Light Armor Plating > --- WEAPON (3) ------- Gauss Cannon > --- INVENTORY (25) --- Advanced Myomer Leg Experimental Heat Sink Experimental Heat Sink High-capacity Storage Unit Gravity Neutralizer Core Analyzer Zionite Weapon Casing Improved Medium Armor Plating Improved Medium Armor Plating Insulated Plating Thief Drone Bay (1/3) Hacking Drone Bay (1/1) AS-neutralizer No. 17b Wave Gun Improved EM Pulse Cannon Heavy Ion Cannon Rocket Launcher CR-A16's Pointy Stick GAL Module Peak State ------------ > --- POWER ------------ Reinforced Deuterium Engine > --- PROPULSION ------- Improved Titanium Leg Improved Titanium Leg Improved Titanium Leg > --- UTILITY ---------- Experimental Heat Sink Huge Storage Unit Zionite Biocell Zionite Weapon Casing Hardened Heavy Armor Plating > --- WEAPON ----------- Heavy Battle Rifle Advanced Assault Cannon Gauss Cannon > --- INVENTORY -------- Neutrino Core Improved Titanium Leg Advanced Myomer Leg Advanced Myomer Leg High-capacity Storage Unit Zionite Biocell Gravity Neutralizer Core Analyzer Matter Filter Kinecellerator Improved Light Armor Plating Improved Medium Armor Plating Improved Medium Armor Plating Insulated Plating Improved Shield Generator Thief Drone Bay Hacking Drone Bay AS-neutralizer No. 17b Wave Gun Improved EM Pulse Cannon Heavy Ion Cannon EMP Blaster Rocket Launcher CR-A16's Pointy Stick GAL Module [Rating: 68] Favorites ----------- Power Improved Ion Engine Engine Improved Ion Engine Power Core Neutrino Core Propulsion Improved Titanium Leg Treads Light Treads Leg Improved Titanium Leg Wheel Wheel Utility High-capacity Storage Unit Device Improved Shield Generator Storage High-capacity Storage Unit Processor Improved Signal Interpreter Protection Hardened Heavy Armor Plating Weapon Heavy Battle Rifle Energy Gun Improved EM Shotgun Energy Cannon Heavy Ion Cannon Ballistic Gun Heavy Battle Rifle Ballistic Cannon Advanced Assault Cannon Launcher EMP Blaster Special Weapon Mining Laser Impact Weapon Makeshift Hammer Slashing Weapon Katana Build | -11 -10 -10 -9 -9 -8 -7 -7 -7 -7 -7 ------- Run | Scr Mat Min Mat Min Mat Fac Low Low Zio Dee Slots Evolved 6 | . . . 2 . 2 2 . . . . Power . | . . . . . . . . . . . Propulsion 1 | . . . . . . 1 . . . . Utility 4 | . . . 2 . 1 1 . . . . Weapon 1 | . . . . . 1 . . . . . Parts Attached 217 | 6 16 2 23 33 41 43 9 4 19 21 Power 13 | 1 1 . . 1 4 2 1 . 2 1 Engine 11 | 1 1 . . 1 4 2 1 . 1 . Core 2 | . . . . . . . . . 1 1 Reactor . | . . . . . . . . . . . Propulsion 37 | 2 3 . 2 6 7 8 . . 5 4 Treads 1 | . . . . . 1 . . . . . Leg 17 | 2 1 . . . . 5 . . 5 4 Wheel 19 | . 2 . 2 6 6 3 . . . . Hover . | . . . . . . . . . . . Flight . | . . . . . . . . . . . Utility 86 | 1 6 2 11 15 11 17 4 1 6 12 Device 45 | . 1 1 4 10 5 8 2 1 5 8 Storage 12 | 1 3 . 1 1 1 2 . . 1 2 Processor 8 | . . . 3 . 3 2 . . . . Hackware . | . . . . . . . . . . . Protection 21 | . 2 1 3 4 2 5 2 . . 2 Artifact . | . . . . . . . . . . . Weapon 81 | 2 6 . 10 11 19 16 4 3 6 4 Energy Gun 25 | . . . 6 7 7 4 . . . 1 Energy Cannon 5 | . . . . . . 4 1 . . . Ballistic Gun 15 | 2 2 . 1 1 5 1 . 1 2 . Ballistic Cannon 12 | . 3 . . . 2 1 1 1 3 1 Launcher 10 | . . . . 2 2 2 2 . . 2 Special Weapon 2 | . 1 . 1 . . . . . . . Impact Weapon 7 | . . . 1 . 3 3 . . . . Slashing Weapon 5 | . . . 1 1 . 1 . 1 1 . Piercing Weapon . | . . . . . . . . . . . Special Melee Weapon . | . . . . . . . . . . . Unidentified Prototypes 10 | . . 1 . 3 1 . . . 1 4 Corrupted Parts 1 | . . . . . . . . . 1 . System Corruption 10 | . . . . . . . . . 10 . Parts Lost 44 | . . . 3 14 10 3 5 . . 9 Power 4 | . . . . 1 1 . 1 . . 1 Propulsion 10 | . . . 1 4 2 1 . . . 2 Utility 15 | . . . . 5 4 1 3 . . 2 Weapon 15 | . . . 2 4 3 1 1 . . 4 Highest Loss Streak 8 | . . . 1 8 5 2 5 . . 7 To Critical Strikes . | . . . . . . . . . . . Average Slot Usage (%) 93 | . 95 100 97 90 93 96 91 92 91 91 Engine 8 | . 14 14 11 11 8 7 6 7 3 6 Leg 14 | . 27 . . . . 16 23 23 23 22 Wheel 7 | . . 28 21 21 16 4 . . . . Device 15 | . 3 . 9 17 9 14 18 23 22 18 Storage 9 | . 15 14 11 11 10 7 7 7 7 9 Processor 4 | . . . 10 . 9 12 3 . . . Protection 8 | . 5 13 11 6 10 7 6 7 7 8 Energy Gun 5 | . . . 17 15 10 4 . . . . Energy Cannon 1 | . . . . . . 11 3 . . . Ballistic Gun 6 | . 6 28 1 2 12 3 . 2 12 10 Ballistic Cannon 7 | . 20 . . . 1 2 12 15 9 10 Launcher 1 | . . . . 2 1 . 5 4 . . Naked Turns . | . . . . . . . . . . . Heaviest Build 143 | 12 40 40 63 70 68 95 99 102 138 143 Greatest Support 70 | 20 20 20 20 32 26 60 60 60 70 60 Greatest Overweight (x) 6 | 3 1 1 6 6 6 4 1 1 2 2 Average Overweight (x) 1 | . . 1 2 2 2 1 . 1 1 2 Largest Inventory Capacity 25 | 8 15 15 20 20 20 20 20 20 25 25 Average Capacity 19 | 7 12 15 19 20 20 20 20 20 22 25 Most Carried 25 | 8 15 15 20 20 20 20 20 20 25 25 Average Carried 19 | 5 11 14 19 18 19 19 18 19 22 24 Final Capacity 25 | 8 15 15 20 20 20 20 20 20 25 25 Final Carried 25 | 8 15 15 20 20 20 20 20 20 25 19 Class Distribution -------------------- 57% | Mutant 24% | Tank 5% | Scavenger-Tank 4% | Skirmisher 3% | Scavenger-Mutant Dominant Class ---------------- Mutant | -10/Materials Mutant | -10/Mines Mutant | -9/Materials Mutant | -9/Mines Scavenger-Tank | -8/Materials Mutant | -7/Factory Mutant | -7/Lower Caves Mutant | -7/Lower Caves Tank | -7/Zion Tank | -7/Deep Caves Resources | -11 -10 -10 -9 -9 -8 -7 -7 -7 -7 -7 ----------- Run | Scr Mat Min Mat Min Mat Fac Low Low Zio Dee Matter Collected 3719 | 268 420 75 408 314 561 719 296 116 230 312 Remotely . | . . . . . . . . . . . Salvage Created 4081 | 121 321 50 786 265 642 1213 475 . . 208 Parts 233 | 3 21 4 65 21 41 47 17 . . 14 Haulers Intercepted 6 | . 2 . 3 . 1 . . . . . Recyclers Shooed 4 | . 1 . . . 2 1 . . . . Parts Field Recycled . | . . . . . . . . . . . Retrieved Matter . | . . . . . . . . . . . Parts Self-Destructed 14 | . . . . . . . 7 . 7 . Prevented 5 | . . . . . . . 5 . . . Kills | -11 -10 -10 -9 -9 -8 -7 -7 -7 -7 -7 ------- Run | Scr Mat Min Mat Min Mat Fac Low Low Zio Dee Combat Hostiles Destroyed 95 | . 10 3 16 13 17 23 9 . . 4 Melee 4 | . . . . 1 1 2 . . . . Guns 36 | . . 3 11 5 10 5 . . . 2 Cannons 28 | . 10 . . . 3 10 3 . . 2 AOE 23 | . . . 5 7 3 2 6 . . . Classes Destroyed 15 | 2 5 . 2 1 2 1 . . . 2 Worker 3 | . 1 . 1 . 1 . . . . . Builder 3 | . . . 1 1 . 1 . . . . Tunneler 1 | 1 . . . . . . . . . . Hauler 6 | . 2 . 3 . 1 . . . . . Recycler 4 | 1 . . . 1 . 2 . . . . Watcher 7 | . 2 . 2 . 2 1 . . . . Swarmer 37 | . 3 3 8 10 6 6 1 . . . Grunt 28 | . 7 . 1 . 4 11 5 . . . Brawler 4 | . . . . . 1 1 2 . . . Sentry 14 | . . . 7 . 4 2 1 . . . Demolisher 2 | . . . . 2 . . . . . . Hunter 2 | . . . . . 2 . . . . . Programmer 3 | . . . . . . 3 . . . . Z-Technician 1 | . . . . . . . . . . 1 Z-Light 3 | . . . . . . . . . . 3 Best Kill Streak 5 | 1 3 3 5 4 3 3 4 . . 2 Combat Bots Only 5 | . 3 3 5 4 3 3 4 . . 2 Max Kills in Single Turn 4 | 1 2 1 3 3 3 2 4 . . 1 Gunslinging . | . . . . . . . . . . . Exploded 3 | . . . 3 3 3 1 3 . . . Melee 1 | . . . . 1 1 1 . . . . Uniques/NPCs Destroyed 2 | . . . . 1 . . . . . 1 8R-AWN (-9/Mines) Z-Imprinter (-7/Deep Caves) Combat | -11 -10 -10 -9 -9 -8 -7 -7 -7 -7 -7 -------- Run | Scr Mat Min Mat Min Mat Fac Low Low Zio Dee Damage Taken 8651 | . 245 34 511 1473 1452 1839 869 . . 2228 Core 1366 | . 64 . 65 257 279 203 82 . . 416 Absorbed by Shields 155 | . . . . . . . 6 . . 149 Redirected to Shielding 6 | . 6 . . . . . . . . . Regen/Repaired (Parts) 661 | . 83 . 179 . 11 270 . . 118 . Core Remaining (%) 60 | 100 . 74 . 19 49 . . . . . Volleys Fired 278 | 4 40 3 34 22 44 83 27 . 1 20 Largest 3 | 2 2 2 2 2 3 3 3 . 1 3 Hottest 193 | 40 100 46 100 100 189 193 178 . 48 162 Shots Fired 620 | 8 76 6 63 42 113 199 58 1 1 53 Gun 298 | 8 6 6 59 39 92 62 . . . 26 Cannon 285 | . 66 . . . 20 128 45 1 1 24 Launcher 29 | . . . . 3 1 9 13 . . 3 Special 8 | . 4 . 4 . . . . . . . Kinetic 239 | 8 72 6 10 . 64 16 15 1 1 46 Thermal 264 | . 4 . 4 . 48 174 30 . . 4 Explosive 7 | . . . . 3 1 3 . . . . Electromagnetic 110 | . . . 49 39 . 6 13 . . 3 Robot Hit Streak 17 | 3 10 2 16 7 12 17 7 . . 5 Robot Miss Streak 8 | 1 5 4 5 4 5 4 2 . . 8 Penetration Max 1 | . . . . . 1 . 1 . . . Secondary Targets 4 | . . 1 . 1 2 . . . . . Max Gunslinging Chain 1 | . . 1 . 1 1 . . . . . Shots Hit Robots 376 | 5 45 3 46 45 80 114 22 . . 16 Core Hits 200 | 3 17 3 36 20 46 41 19 . . 15 Critical Kills 1 | . . . . . . 1 . . . . Critical Parts Destroyed 2 | . . . . 2 . . . . . . Critical Strikes 10 | . 2 . . 2 4 1 1 . . . Burn 1 | . . . . . 1 . . . . . Destroy 1 | . . . . . 1 . . . . . Blast 3 | . 2 . . . . . 1 . . . Smash 3 | . . . . 2 . 1 . . . . Sever 2 | . . . . . 2 . . . . . Melee Attacks 59 | . . . 1 26 17 15 . . . . Impact 24 | . . . . 4 12 8 . . . . Slashing 35 | . . . 1 22 5 7 . . . . Piercing . | . . . . . . . . . . . Sneak Attacks 3 | . . . . 1 1 1 . . . . Combat Hostiles . | . . . . . . . . . . . Follow-up Attacks 6 | . . . . 4 2 . . . . . Damage Inflicted 10571 | 37 787 34 1147 1544 1827 3293 1107 . . 795 Guns 3180 | 37 59 34 741 324 1063 669 . . . 253 Cannons 3628 | . 728 . . . 327 1813 419 . . 341 Explosions 2366 | . . . 406 467 163 441 688 . . 201 Melee 1397 | . . . . 753 274 370 . . . . Ramming . | . . . . . . . . . . . Kinetic 2740 | 37 787 34 74 . 884 99 256 . . 569 Thermal 3936 | . . . 406 175 506 2383 342 . . 124 Explosive 643 | . . . . 292 163 188 . . . . Electromagnetic 1855 | . . . 667 324 . 253 509 . . 102 Impact 434 | . . . . 113 149 172 . . . . Slashing 963 | . . . . 640 125 198 . . . . Piercing . | . . . . . . . . . . . Highest Corruption 11 | . . . 1 1 11 2 11 11 11 . Average Corruption 4 | . . . 1 1 6 1 8 11 10 . Corruption Purged . | . . . . . . . . . . . Corruption Blocked . | . . . . . . . . . . . Effects 169 | . . . 10 10 34 17 51 45 2 . Message Errors 40 | . . . 5 3 7 2 11 12 . . Matter Fused 36 | . . . 2 1 7 3 10 12 1 . Heat Flow Errors 31 | . . . 2 2 8 1 9 9 . . Energy Discharges 18 | . . . 1 . 2 3 5 6 1 . Parts Rejected 2 | . . . . . 1 1 . . . . Data Loss (minor) 21 | . . . . 3 3 1 9 5 . . Data Loss (major) 7 | . . . . . 3 3 1 . . . Misfires 12 | . . . . 1 2 2 6 1 . . Alerts 2 | . . . . . 1 1 . . . . Overload Shots . | . . . . . . . . . . . Overflow Damage 353 | . 6 . 1 114 54 127 25 . . 26 Projectiles 106 | . 6 . . . 2 98 . . . . Explosions 94 | . . . 1 41 . 1 25 . . 26 Melee 153 | . . . . 73 52 28 . . . . Knockbacks 23 | . 12 . . . 7 . . . . 4 Impact . | . . . . . . . . . . . Kinetic 22 | . 11 . . . 7 . . . . 4 Secondary 1 | . 1 . . . . . . . . . Self-Inflicted Damage 342 | . . . 41 65 . . 225 . . 11 Shots 15 | . . . 3 2 . . 9 . . 1 Rammed . | . . . . . . . . . . . Targets Rammed . | . . . . . . . . . . . Kicked . | . . . . . . . . . . . Crushed . | . . . . . . . . . . . Highest Temperature 478 | . 126 . 254 223 478 338 374 186 20 431 Average Temperature 105 | . 30 . 35 66 114 119 130 63 13 218 Received Heat Transfer 2043 | . 135 . 114 . 216 807 132 . . 639 Effects 15 | . . . . . 7 2 . . . 6 Shutdowns 2 | . . . . . . . . . . 2 Energy Bleed 1 | . . . . . 1 . . . . . Interference 3 | . . . . . 1 2 . . . . Matter Decay 1 | . . . . . . . . . . 1 Short Circuit 1 | . . . . . 1 . . . . . Damage (minor) 3 | . . . . . . . . . . 3 Damage (major) 4 | . . . . . 4 . . . . . Siege Activations . | . . . . . . . . . . . Robots Corrupted 1 | . . . . . . 1 . . . . Combat Hostiles 1 | . . . . . . 1 . . . . Parts Fried 7 | . . . 4 . . 2 1 . . . Impact Corruptions 4 | . . . . 2 1 1 . . . . Robots Melted 2 | . . . . . . 2 . . . . Combat Hostiles 2 | . . . . . . 2 . . . . Parts Melted 13 | . . . . 1 1 10 . . . 1 Heat Transferred 6027 | . . . 550 150 1147 3737 372 . . 71 Parts Sabotaged . | . . . . . . . . . . . Parts Stolen . | . . . . . . . . . . . Parts Stripped . | . . . . . . . . . . . Power Chain Reactions 15 | . . . 7 2 . . 5 . . 1 Missiles Intercepted . | . . . . . . . . . . . Alert | -11 -10 -10 -9 -9 -8 -7 -7 -7 -7 -7 ------- Run | Scr Mat Min Mat Min Mat Fac Low Low Zio Dee Peak Influence 372 | 10 134 70 372 177 233 278 . . . . Initial 45 | . 6 . . 45 . 36 . . . . Average 102 | 4 54 60 190 39 78 121 . . . . Maximum Alert Level 1 | . . . 1 . 1 1 . . . . Low Security (%) 84 | 100 100 100 45 100 98 88 . . . . Level 1 15 | . . . 54 . 1 11 . . . . Level 2 . | . . . . . . . . . . . Level 3 . | . . . . . . . . . . . Level 4 . | . . . . . . . . . . . Level 5 . | . . . . . . . . . . . High Security . | . . . . . . . . . . . Max Security . | . . . . . . . . . . . Squads Dispatched 17 | . 2 . 2 . 5 8 . . . . Investigation 5 | . 1 . . . 1 3 . . . . Extermination 4 | . . . . . . 4 . . . . Reinforcement 7 | . 1 . 2 . 3 1 . . . . Assault . | . . . . . . . . . . . Garrison 1 | . . . . . 1 . . . . . Intercept . | . . . . . . . . . . . Searches Triggered . | . . . . . . . . . . . Construction Impeded 2 | . . . . . 1 1 . . . . Haulers Reinforced . | . . . . . . . . . . . Active Scanning Responses . | . . . . . . . . . . . Cargo Convoy Interrupts . | . . . . . . . . . . . Stealth | -11 -10 -10 -9 -9 -8 -7 -7 -7 -7 -7 --------- Run | Scr Mat Min Mat Min Mat Fac Low Low Zio Dee Distress Signals 11 | . 3 . 3 . 2 3 . . . . Communications Jammed . | . . . . . . . . . . . Distress Signals . | . . . . . . . . . . . Times Spotted 160 | . 17 2 33 16 36 35 10 . . 11 Peak Tracking Total 7 | . 4 2 5 4 5 4 7 . . 5 Tactical Retreats 17 | . . . 11 . 4 1 1 . . . Traps | -11 -10 -10 -9 -9 -8 -7 -7 -7 -7 -7 ------- Run | Scr Mat Min Mat Min Mat Fac Low Low Zio Dee Traps Triggered 6 | . . . 2 . 2 2 . . . . Indirectly . | . . . . . . . . . . . Trap Hack Attempts . | . . . . . . . . . . . Triggered . | . . . . . . . . . . . Disarmed . | . . . . . . . . . . . Reprogrammed 6 | . 6 . . . . . . . . . Reused . | . . . . . . . . . . . Traps Extracted . | . . . . . . . . . . . Installed . | . . . . . . . . . . . Triggered . | . . . . . . . . . . . Machines | -11 -10 -10 -9 -9 -8 -7 -7 -7 -7 -7 ---------- Run | Scr Mat Min Mat Min Mat Fac Low Low Zio Dee Machines Disabled 3 | . . . 1 . 1 . . . . 1 Max in Single Turn 1 | . . . 1 . 1 . . . . 1 Garrison Access 1 | . . . . . . 1 . . . . Machines Sabotaged . | . . . . . . . . . . . Garrisons Compromised . | . . . . . . . . . . . Overloaded Fab Kills . | . . . . . . . . . . . Hacking | -11 -10 -10 -9 -9 -8 -7 -7 -7 -7 -7 --------- Run | Scr Mat Min Mat Min Mat Fac Low Low Zio Dee Machines Accessed 48 | . 10 1 14 . 8 14 . 1 . . Terminals 30 | . 7 . 9 . 7 7 . . . . Fabricators 1 | . . . . . . 1 . . . . Repair Stations 5 | . 1 . 2 . 1 1 . . . . Recycling Units 5 | . 2 . 2 . . 1 . . . . Scanalyzers 2 | . . . 1 . . 1 . . . . Garrison Access 3 | . . . . . . 3 . . . . Total Hacks 149 | . 31 1 48 . 34 34 . 1 . . Successful 89 | . 18 1 35 . 18 16 . 1 . . Failed 59 | . 13 . 12 . 16 18 . . . . Catastrophic 5 | . 1 . . . 2 2 . . . . Database Lockouts 1 | . . . 1 . . . . . . . Manual 69 | . 14 . 21 . 18 12 . . 4 . Terminals 93 | . 20 . 30 . 31 12 . . . . Fabricators 1 | . . . . . . 1 . . . . Repair Stations 18 | . 5 . 6 . 3 4 . . . . Recycling Units 18 | . 6 . 6 . . 6 . . . . Scanalyzers 10 | . . . 6 . . 4 . . . . Garrison Access 7 | . . . . . . 7 . . . . Terminal Hacks 33 | . 8 1 9 . 9 5 . 1 . . Robot Schematic 1 | . . . . . . 1 . . . . Robot Analysis 5 | . 2 . 1 . 1 1 . . . . Prototype ID Bank 5 | . 3 . 1 . 1 . . . . . Open Door 2 | . . 1 . . . . . 1 . . Branch Access Points 1 | . . . . . . 1 . . . . Terminal Index 2 | . . . 1 . 1 . . . . . Recycling Unit Index 1 | . . . . . . 1 . . . . Alert Level 2 | . . . 1 . 1 . . . . . Unreport Threat 3 | . . . 1 . 2 . . . . . Locate Traps 6 | . 2 . 2 . 1 1 . . . . Reprogram Traps 1 | . 1 . . . . . . . . . Dispatch Records 1 | . . . 1 . . . . . . . Recall Investigation 1 | . . . . . 1 . . . . . Hauler Manifests 2 | . . . 1 . 1 . . . . . Fabricator Hacks 1 | . . . . . . 1 . . . . Network Status 1 | . . . . . . 1 . . . . Repair Station Hacks 16 | . 4 . 6 . 2 4 . . . . Scan Component 8 | . 2 . 3 . 1 2 . . . . Repair 8 | . 2 . 3 . 1 2 . . . . Recycling Unit Hacks 4 | . 1 . 2 . . 1 . . . . Retrieve Components 4 | . 1 . 2 . . 1 . . . . Scanalyzer 7 | . . . 6 . . 1 . . . . Insert Component 4 | . . . 3 . . 1 . . . . Analyze 3 | . . . 3 . . . . . . . Garrison Access Hacks 1 | . . . . . . 1 . . . . Seal Access 1 | . . . . . . 1 . . . . Unauthorized Hacks 27 | . 5 . 12 . 7 3 . . . . Terminals 22 | . 4 . 10 . 7 1 . . . . Track 8 | . 1 . 5 . 2 . . . . . Assimilate 3 | . . . 1 . 1 1 . . . . Botnet 7 | . 2 . 3 . 2 . . . . . Disrupt 1 | . . . . . 1 . . . . . Operators 3 | . 1 . 1 . 1 . . . . . Fabricators . | . . . . . . . . . . . Repair Stations . | . . . . . . . . . . . Recycling Units 4 | . 1 . 2 . . 1 . . . . Reject 2 | . 1 . 1 . . . . . . . Mask 2 | . . . 1 . . 1 . . . . Scanalyzers . | . . . . . . . . . . . Garrison Access 1 | . . . . . . 1 . . . . Reprogram 1 | . . . . . . 1 . . . . Data Cores Recovered . | . . . . . . . . . . . Used . | . . . . . . . . . . . Hacking Detections 45 | . 9 . 14 . 8 14 . . . . Full Trace Events 3 | . 1 . . . 1 1 . . . . Feedback Events . | . . . . . . . . . . . Feedback Blocked . | . . . . . . . . . . . Robot Schematics Acquired 5 | . . . . . . 1 . . 4 . Robots Built . | . . . . . . . . . . . Authchips . | . . . . . . . . . . . Time . | . . . . . . . . . . . Total Robot Build Rating . | . . . . . . . . . . . Part Schematics Acquired 18 | . . . 3 . . . . . 15 . Parts Built . | . . . . . . . . . . . Authchips . | . . . . . . . . . . . Time . | . . . . . . . . . . . Total Part Build Rating . | . . . . . . . . . . . Parts Repaired 8 | . 2 . 3 . 1 2 . . . . Time 344 | . 52 . 96 . 108 88 . . . . Parts Recycled . | . . . . . . . . . . . Recycled Matter . | . . . . . . . . . . . Retrieved Matter . | . . . . . . . . . . . Retrieved Components 33 | . 3 . 20 . . 10 . . . . Parts Scanalyzed 4 | . . . 3 . . 1 . . . . Part Schematics Acquired 3 | . . . 3 . . . . . . . Parts Damaged . | . . . . . . . . . . . Bothacking | -11 -10 -10 -9 -9 -8 -7 -7 -7 -7 -7 ------------ Run | Scr Mat Min Mat Min Mat Fac Low Low Zio Dee Used RIF Installer . | . . . . . . . . . . . Robots Hacked . | . . . . . . . . . . . Non-combat . | . . . . . . . . . . . Combat . | . . . . . . . . . . . Robot Hacks Applied . | . . . . . . . . . . . Relay Couplers Released 3 | . . . . . . 3 . . . . Machine Destruction 3 | . . . . . . 3 . . . . Fabnet Peak Effective % . | . . . . . . . . . . . Robots Rewired 2 | . . . . . . . 2 . . . Allies Hacked . | . . . . . . . . . . . Hacks Repelled . | . . . . . . . . . . . Allies | -11 -10 -10 -9 -9 -8 -7 -7 -7 -7 -7 -------- Run | Scr Mat Min Mat Min Mat Fac Low Low Zio Dee Total Allies 11 | . . . 1 1 1 2 2 . 4 . Largest Group 6 | . . . 1 1 1 3 2 2 6 6 Highest-Rated Group 131 | . . . 10 31 10 57 52 52 131 131 Highest-Rated Ally 37 | . . . 10 31 10 37 32 32 32 32 Total Orders 25 | . . 1 1 4 7 4 . 5 . 3 STAY 8 | . . . . . 3 2 . 2 . 1 ROAM 1 | . . . . . 1 . . . . . FOLLOW 10 | . . . . 1 3 2 . 3 . 1 RETURN 6 | . . 1 1 3 . . . . . 1 Ally Attacks 152 | . . . . 64 . 12 2 . . 74 Total Damage 2244 | . . . . 1094 . 283 67 . . 800 Kills 8 | . . . . . . 3 1 . . 4 Allies Corrupted . | . . . . . . . . . . . Allies Melted 1 | . . . . . . . . . . 1 Intel | -11 -10 -10 -9 -9 -8 -7 -7 -7 -7 -7 ------- Run | Scr Mat Min Mat Min Mat Fac Low Low Zio Dee Robot Analysis Total 5 | . 2 . 1 . 1 1 . . . . Derelict Logs Recovered 5 | . . 1 . 1 . . . 2 1 . Drone Launches 8 | . . 1 1 5 . . . . . 1 Drone Recoveries 6 | . . 1 1 3 . . . . . 1 Exploration | -11 -10 -10 -9 -9 -8 -7 -7 -7 -7 -7 ------------- Run | Scr Mat Min Mat Min Mat Fac Low Low Zio Dee Turns Passed 17739 | 115 1726 461 2378 1515 1767 2398 1461 1288 3398 1232 Spaces Moved 9145 | 70 924 455 1644 1032 879 1058 652 623 1410 398 Core 11 | 11 . . . . . . . . . . Treads . | . . . . . . . . . . . Legs 4720 | 59 910 . . . . 668 652 623 1410 398 Wheels 4414 | . 14 455 1644 1032 879 390 . . . . Hover . | . . . . . . . . . . . Flight . | . . . . . . . . . . . Fastest Speed 50 | 50 95 95 95 95 110 115 130 200 196 270 Average Speed 165 | 126 159 95 123 120 125 171 199 200 233 270 Slowest Speed 270 | 200 190 95 170 170 170 270 200 200 270 270 Overloaded Moves . | . . . . . . . . . . . Propulsion Burnouts . | . . . . . . . . . . . Robots Hopped . | . . . . . . . . . . . Cave-ins Triggered 2 | . . . . . 2 . . . . . Exploration Rate (%) 67 | 5 99 95 97 99 52 30 67 76 86 34 Regions Visited 10 Branch Regions 6 Pre-discovered Areas 4 | . . . . . . . . . 4 . Known Exits Taken 1 | . . . . . . 1 . . . . Unknown Exits Taken 9 | 1 1 1 1 1 1 . 1 1 1 . Scrap Searched 9 | . . 1 . 1 . . 1 3 3 . Spaces Dug 38 | . . . 5 . 7 13 13 . . . Terrain Destroyed 160 | . . . 23 34 21 41 28 1 . 12 Melee 9 | . . . 1 . 7 1 . . . . Projectile 62 | . . . 4 . 1 28 18 1 . 10 AOE 89 | . . . 18 34 13 12 10 . . 2 Terrain Rammed . | . . . . . . . . . . . Walls Destroyed . | . . . . . . . . . . . Machines Disabled . | . . . . . . . . . . . Actions | -11 -10 -10 -9 -9 -8 -7 -7 -7 -7 -7 --------- Run | Scr Mat Min Mat Min Mat Fac Low Low Zio Dee Total 11144 | 87 1094 477 1927 1224 1428 1462 760 668 1505 512 Wait 1168 | . 78 15 186 81 404 207 55 29 56 57 Move 9135 | 69 923 454 1643 1031 878 1057 651 622 1409 398 Hop . | . . . . . . . . . . . Pick Up 137 | 8 19 1 22 19 21 21 5 5 9 7 Fast Attach 68 | 6 5 1 8 4 16 16 1 2 7 2 Attach 58 | . 3 . 7 19 8 9 5 . . 7 Detach 11 | . 1 . . 5 3 . 1 1 . . Swap 91 | . 8 1 8 10 17 18 3 2 12 12 Drop 128 | . 17 2 18 11 22 31 . 7 11 9 Fire 278 | 4 40 3 34 22 44 83 27 . 1 20 Melee 53 | . . . 1 22 15 15 . . . . Ram . | . . . . . . . . . . . Kick . | . . . . . . . . . . . Crush . | . . . . . . . . . . . Escape Stasis 5 | . . . . . . 5 . . . . Rewire 12 | . . . . . . . 12 . . . Trap . | . . . . . . . . . . . Miscellaneous . | . . . . . . . . . . . Route ------- -11/Scrapyard -10/Materials (discovered 5 exits: *Mat x3 / *Min x2) -10/Mines -9/Materials (discovered 5 exits: *Mat x3 / [*Min x2]) -9/Mines (discovered 3 exits: *Mat x2 / [*Exi]) -8/Materials (discovered 2 exits: *Fac x2) -7/Factory (discovered 4 exits: [*Fac] / *Sto / *Low x2) -7/Lower Caves -7/Lower Caves (discovered 2 exits: [*Fac] / *Zio) -7/Zion (discovered 2 exits: [*Dee] / [*Pro]) -7/Deep Caves History --------- Turn | Location | Event 26 | -11/Scrapyard | Discovered new exit (range 15) 116 | -11/Scrapyard | Entered Materials 267 | -10/Materials | Discovered new exit (range 8) 314 | -10/Materials | Build established: Mutant 353 | -10/Materials | Discovered new exit (range 8) 560 | -10/Materials | Discovered new exit (range 16) 692 | -10/Materials | Discovered new exit (range 6) 1263 | -10/Materials | Discovered new exit (range 16) 1647 | -10/Materials | Repaired Aluminum Leg 1674 | -10/Materials | Repaired Com. Wheel 1842 | -10/Materials | Entered Mines 1966 | -10/Mines | Found a hidden stash of uninstalled traps 1982 | -10/Mines | Discovered new exit (range 6) 1990 | -10/Mines | Found the Drone Emporium 1995 | -10/Mines | Found Prototype Device 1995 | -10/Mines | Identified Thief Drone Bay 2056 | -10/Mines | Learned Materials non-interactive machine intel 2303 | -10/Mines | Entered Materials 2303 | -9/Materials | Evolved 2 slots: Utility x2 2304 | -9/Materials | Loaded intel: 44 non-interactive machine locations 2515 | -9/Materials | Met 8R-AWN 2519 | -9/Materials | Discovered new exit (range 18) 2732 | -9/Materials | Discovered new exit (range 16) 2753 | -9/Materials | Central database locked down 3136 | -9/Materials | Discovered new exit (range 5) 3272 | -9/Materials | Repaired Med. Armor Plating 3318 | -9/Materials | Discovered new exit (range 6) 3996 | -9/Materials | Repaired Med. Armor Plating? 4185 | -9/Materials | Discovered new exit (range 9) 4308 | -9/Materials | Repaired Cooling System 4681 | -9/Materials | Entered Mines 4683 | -9/Mines | Followed 8R-AWN into the Mines 4686 | -9/Mines | Attacked by 8R-AWN 4743 | -9/Mines | Destroyed 8R-AWN 4764 | -9/Mines | Found Prototype Device 4767 | -9/Mines | Identified AS-neutralizer No. 17b 4789 | -9/Mines | Learned Materials garrison access intel 4838 | -9/Mines | Found a damaged Exp. Sensor Array with a note attached 4841 | -9/Mines | Found Prototype Device 4842 | -9/Mines | Identified Exp. Sensor Array 4849 | -9/Mines | Discovered new exit (range 14) 5064 | -9/Mines | Received a Rocket Launcher from a helpful Derelict 5101 | -9/Mines | Discovered new exit (range 15) 5103 | -9/Mines | Escorted by a lone wolf Derelict 5232 | -9/Mines | Assembled infested the area 5237 | -9/Mines | Assisted by a Guerilla fighting off Assembled 5257 | -9/Mines | Core integrity fell below 50% 5281 | -9/Mines | Core integrity fell below 20% 5311 | -9/Mines | Lost 8 parts (1p2n2u3w) 5904 | -9/Mines | A weapon hastily lodged in a ceiling crevice suddenly fell to the ground 5952 | -9/Mines | Discovered new exit (range 5) 6044 | -9/Mines | Build established: Scavenger-Mutant 6196 | -9/Mines | Entered Materials 6196 | -8/Materials | Evolved 2 slots: Utility x1, Weapon x1 6197 | -8/Materials | Loaded intel: 1 garrison access location 6527 | -8/Materials | Lost 5 parts (1p1n3u) 7154 | -8/Materials | Discovered new exit (range 12) 7464 | -8/Materials | Crushed by falling debris 7466 | -8/Materials | Crushed by falling debris 7466 | -8/Materials | System corruption reached 10% 7549 | -8/Materials | Discovered new exit (range 5) 7693 | -8/Materials | Repaired Exp. Sensor Array? 7780 | -8/Materials | Build established: Scavenger-Tank 7846 | -8/Materials | Core integrity fell below 50% 7889 | -8/Materials | Garrison activated, responded to threat 7963 | -8/Materials | Entered Factory 7963 | -7/Factory | Accompanied by 1 ally 7963 | -7/Factory | Evolved 2 slots: Propulsion x1, Utility x1 8157 | -7/Factory | Discovered new exit (range 15) 8226 | -7/Factory | Identified exit to Storage 9201 | -7/Factory | Build established: Skirmisher 9669 | -7/Factory | Identified exit to Lower Caves 9759 | -7/Factory | Repaired Imp. Titanium Leg 9759 | -7/Factory | Build established: Gunner 9820 | -7/Factory | Repaired Hvy. Ion Cannon 10065 | -7/Factory | Build established: Mutant 10266 | -7/Factory | Discovered new exit (range 12) 10361 | -7/Factory | Entered Lower Caves 10681 | -7/Lower Caves | Attracted the attention of an 0b10 outpost 10718 | -7/Lower Caves | System corruption reached 10% 10757 | -7/Lower Caves | Lost 5 parts (1p3u1w) 11071 | -7/Lower Caves | Build established: Tank 11508 | -7/Lower Caves | Build established: Mutant 11562 | -7/Lower Caves | Discovered new exit (range 13) 11822 | -7/Lower Caves | Entered another Lower Caves area 11822 | -7/Lower Caves | Accompanied by 2 allies 11942 | -7/Lower Caves | Discovered new exit (range 12) 11992 | -7/Lower Caves | Learned Factory non-interactive machine intel 12284 | -7/Lower Caves | Learned 4 Factory zone layouts 13075 | -7/Lower Caves | Discovered new exit (range 7) 13110 | -7/Lower Caves | Entered Zion 13110 | -7/Zion | Accompanied by 2 allies 13178 | -7/Zion | System corruption cleaned by Quarantine Array 13197 | -7/Zion | System corruption cleaned by Quarantine Array 13239 | -7/Zion | Learned 4 Factory zone layouts 13390 | -7/Zion | Discovered new exit (range 13) 13404 | -7/Zion | Found CR-A16's Pointy Stick 13501 | -7/Zion | Build established: Tank 13658 | -7/Zion | Learned location of Extension (-4) 13848 | -7/Zion | Acquired unknown access codes intercepted by a Zionite 13989 | -7/Zion | Learned location of Warlord (-4) 14056 | -7/Zion | Found GAL Module 14153 | -7/Zion | Opened final containment barrier to the Deep Caves 14277 | -7/Zion | Learned location of Testing (-3) 14327 | -7/Zion | Gained Derelict followers 14531 | -7/Zion | Learned location of Data Miner (-6) 14851 | -7/Zion | Given the Hacking Drone Bay 14851 | -7/Zion | Found Prototype Device 14895 | -7/Zion | Identified Hacking Drone Bay 16495 | -7/Zion | Discovered new exit (range 3) 16495 | -7/Zion | Saw the warning signs outside the Deep Caves entrance 16508 | -7/Zion | Entered Deep Caves 16508 | -7/Deep Caves | Accompanied by 6 allies 17059 | -7/Deep Caves | Z-Facility disabled 17088 | -7/Deep Caves | Attacked by Z-Imprinter 17133 | -7/Deep Caves | Core integrity fell below 50% 17154 | -7/Deep Caves | Destroyed Z-Imprinter 17223 | -7/Deep Caves | Found Prototype Protection 17223 | -7/Deep Caves | Identified Zio. Weapon Casing 17614 | -7/Deep Caves | Build established: Mutant 17735 | -7/Deep Caves | Core integrity fell below 20% 17740 | -7/Deep Caves | Destroyed by 9Z-A7Q(z) with Zionite Laser-S Last Messages --------------- 17576_ Acquired 10 matter. 17692_ Dropped Imp. Titanium Leg. 17693_ Acquired Prototype Leg. 17693_ Identified Zio. Composite Leg I. 17698_ Dropped Corrupted Zio. Biocell. 17712_ EF-BFV(z) knocked back. 17712_ Slug penetrates Wall. 17714_ Hvy. Battle Rifle destroyed. 17726_ Imp. Titanium Leg destroyed. 17728_ Dropped Imp. Shield Generator. 17730_ 9Z-A7Q(z) knocked back. 17730_ QV-PAD(z) destroyed. 17732_ Hrd. Heavy Armor Plating destroyed. 17732_ EMP Blaster destroyed. 17734_ Imp. Titanium Leg destroyed. 17734_ NV-VNA(z) misfires. 17734_ Adv. Assault Cannon destroyed. 17738_ Rnf. Deuterium Engine destroyed. 17739_ JP-2MC(z) knocked back. 17740_ JP-2MC(z) misfires. Map ----- +----------------------------------------------------+ | | | | | | | | | | | | | | | | | | | | | | | | | | | | | | | | | | | | | | | | | | | | | ???????????????????????####??????????????????????? | | ???????????????????????# =#????###############???? | | ???????????????????????#=!#?#### ##??? | | ???????????????????????#!@### #??? | | ???????????????###?????#%!;# #### | | ?????????????### "??##zz* ## | | ?????????????# # = z | | ???????? z | | ???????? % | | ???????? % | | ????????? | | ????????? """" """""" | | ?????????? """"" """"""" | | ?????????? """"""""""""" | | ?????????? """""""""""""" | | ??????????? """"?????"" | | ??????????? """??????""""" | | ???????????? "????????""""" | | ???????????? "?????????""" | | ?????????????? "??????????""" | | ???????????????? "??????????%" | | ??????????????????? ?????????"% % | | ????????????????????? ??????????? * | | ?????????????????????????????????????"% | | ?????????????????????????????????????"! | | ??????????????????????????????????????" | | ??????????????????????????????????????""""%! | | ???????????????????????????????????????? | +----------------------------------------------------+ Best States ------------- Heat Dissipation 87 Energy Generation 19 Energy Capacity 915 Matter Stores 300 Matter Capacity 450 Sight Range 18 Robot Scan Range 20 Terrain Scan Range 16 Terrain Scan Density 110 Additional Mass Support 12 Base Temperature (-) 100 Armor Coverage 750 Core Shielding 20 Weapon Shielding 100 Weapon Cycling 15 Evasion (%) 55 Targeting Accuracy 8 Melee Accuracy 5 Matter Filtering 30 Particle Charging 15 Kinecelleration 30 Item Schematics ----------------- Huge Storage Unit | -9/Materials | Scanalyzed Hvy. EM Pulse Gun | -9/Materials | Scanalyzed Imp. Ion Engine | -9/Materials | Scanalyzed Plasma Cannon | -7/Zion | Archive Weapon Cycler | -7/Zion | Archive Imp. Trap Scanner | -7/Zion | Archive Power Amplifier | -7/Zion | Archive Greatsword | -7/Zion | Archive Hpw. Shock Rifle | -7/Zion | Archive Mak. Shrapnel Gun | -7/Zion | Archive Imp. Hacking Suite | -7/Zion | Archive Imp. Melee Analysis Suite | -7/Zion | Archive Neutrino Core | -7/Zion | Archive KE Penetrator | -7/Zion | Archive Adv. Heat Sink | -7/Zion | Archive Med. Treads | -7/Zion | Archive Coolant Injector | -7/Zion | Archive Hvy. Flak Cannon | -7/Zion | Archive Robot Schematics ------------------ B-36 Bruiser | -7/Factory | Hacked L-41 Fighter | -7/Zion | Archive B-48 Gladiator | -7/Zion | Archive T-07 Excavator | -7/Zion | Archive Y-72 Warden | -7/Zion | Archive Fabricated ------------ Nothing Alien Tech Used ----------------- None Achievements -------------- None Challenges ------------ None Game ------ Seed HybridControlDisintegrator Manual? 0 Play Time 02:15:53 Cumulative 376.8 hours Start 2023.01.27 @ 03:36:50 End 2023.01.27 @ 20:15:16 Sessions 3 Manual Loads 0 Difficulty Rogue Special Mode None Game No. 301 Rogue 301 Adventurer 0 Explorer 0 Win Type - Total 0 Types 0/0/0/0/0/0/0/0/0 Lore% 57 Gallery% 64 Achievement% 47 Wizard Run 0 Options --------- ASCII 0 Keyboard 0 Movement Mouse Keybinds 0 Fullscreen 1 Font 16/SmallcapsGlow Map View 75x55 Tactical HUD 1 Map Filters NONE Filters NONE Steam 1 RUN: d5bdebaf-8c22-44f0-b3b7-e797acda4cb0